bitfinex/quotes_ETHUSD_20240828
["timestamp","ask_amount","ask_price","bid_price","bid_amount"]
[1724833910519,9.6242,2470.8,2470.5,4.04765]
[1724833910755,27.8135,2471.2,2470.2,0.0809524]
[1724833910756,9.8257,2471.1,2470.7,4.04738]
[1724833911112,9.8257,2471.1,2470.7,4.04734]
[1724833911308,11.21294,2471.1,2470.7,4.04734]
[1724833912407,9.8257,2471.1,2470.7,4.0473]
[1724833912608,9.8257,2471.1,2470.9,4.04703]
[1724833912821,9.8257,2471.1,2471.0,4.04694]
[1724833913640,4.0464,2471.4,2471.1,4.0467]
[1724833913641,9.4811,2471.4,2471.1,4.0467]
[1724833915637,13.5274,2471.4,2470.9,4.04698]
[1724833915933,9.4811,2471.4,2471.0,4.04691]
[1724833916137,13.52739,2471.4,2470.9,4.04698]
[1724833916334,15.284719,2471.4,2470.9,4.04698]
[1724833916827,19.331119,2471.4,2470.9,4.04698]
[1724833917024,9.4797,2471.2,2470.7,8.09462]
[1724833917211,9.4797,2471.2,2470.8,4.04726]
[1724833917935,9.4797,2471.2,2471.0,4.0469]
[1724833918755,17.15838,2471.5,2471.0,4.0469]
[1724833918925,0.809237,2471.4,2471.0,4.0469]
[1724833920014,9.066,2471.5,2471.1,4.04673]
[1724833920415,9.066,2471.5,2471.1,4.0467]
[1724833920815,4.04636,2471.4,2470.9,4.04695]
[1724833921020,9.884,2471.2,2470.9,4.04695]
[1724833922068,9.884,2471.2,2471.0,4.04692]
[1724833922585,9.884,2471.2,2471.0,4.04682]
[1724833922793,9.884,2471.2,2471.1,4.04678]
[1724833922959,9.6162,2471.5,2471.2,4.04661]
[1724833923489,13.66232,2471.5,2470.9,4.04698]
[1724833923688,13.66252,2471.4,2470.9,4.04698]
[1724833924171,9.6162,2471.4,2471.0,4.04693]
[1724833924679,9.6162,2471.4,2471.0,4.04686]
[1724833924889,4.04662,2471.2,2470.8,4.04714]
[1724833925069,4.08485578,2471.7,2470.8,4.04714]
[1724833925070,9.4111,2471.1,2470.8,4.04714]
[1724833925244,9.4111,2471.1,2470.8,8.09428]
[1724833925444,9.4111,2471.1,2470.8,4.04714]
[1724833926340,9.4111,2471.1,2470.9,4.04701]
[1724833926545,9.3649,2471.3,2471.0,4.04694]
[1724833926753,9.3649,2471.3,2471.1,4.04669]
[1724833927392,9.3649,2471.3,2471.0,8.09379]
[1724833927984,9.3649,2471.3,2471.0,4.04685]
[1724833928186,14.752453,2471.3,2470.8,4.04717]
[1724833928385,18.799003,2471.3,2470.8,4.04717]
[1724833928556,4.04666,2471.2,2470.8,4.04717]
[1724833928762,14.752453,2471.3,2470.8,4.04717]
[1724833928763,18.799063,2471.3,2470.8,4.04717]
[1724833928946,1.4752453,2471.2,2470.8,4.04717]
[1724833930370,1.4752453,2471.2,2470.8,4.04715]
[1724833930694,9.3649,2471.2,2470.6,5.06144476]
[1724833930902,9.3649,2471.2,2470.4,4.04788]
[1724833930903,13.41162,2471.2,2470.4,4.04788]
[1724833931053,13.41162,2471.2,2470.6,4.04757]
[1724833931054,4.98334,2471.1,2470.6,4.04757]
[1724833931680,13.41185,2471.0,2470.4,4.04788]
[1724833931876,9.3649,2471.0,2470.2,6.16128642]
[1724833932095,4.04743,2470.7,2470.2,4.04813]
[1724833932296,9.3649,2470.5,2470.2,4.04813]
[1724833932653,9.3649,2470.5,2470.3,4.04798]
[1724833932856,9.6151,2470.8,2470.5,4.04774]
[1724833933120,10.91842242,2470.8,2470.5,4.04774]
[1724833933457,10.91842242,2470.8,2470.5,4.04768]
[1724833933658,9.6151,2470.8,2470.5,4.04768]
[1724833934789,9.6151,2470.8,2470.5,8.09532]
[1724833934990,9.6151,2470.8,2470.6,4.04758]
[1724833935257,9.6151,2470.8,2470.7,4.04743]
[1724833936259,9.7596,2471.2,2470.8,4.04719]
[1724833936487,13.80623,2471.2,2470.7,8.09486]
[1724833936696,13.80623,2471.2,2470.7,4.04743]
[1724833936903,15.7470748,2471.1,2470.6,4.04754]
[1724833937064,11.7002048,2471.1,2470.7,4.04741]
[1724833937894,11.7002048,2471.1,2470.8,4.04726]
[1724833937895,9.7596,2471.1,2470.8,4.04726]
[1724833939460,9.7596,2471.1,2470.7,4.04741]
[1724833940074,9.7596,2471.1,2470.5,4.04764]
[1724833940075,9.7596,2471.1,2470.5,4.04769]
[1724833940283,9.7596,2471.1,2470.9,4.04706]
[1724833941174,9.7596,2471.1,2470.8,4.04726]
[1724833941502,14.78238,2471.1,2470.7,4.04733]
[1724833942300,10.73556,2471.1,2470.7,4.04733]
[1724833942486,9.7596,2471.1,2470.7,8.09463]
[1724833943005,9.7596,2471.1,2470.8,4.04721]
[1724833944266,9.7596,2471.1,2470.7,4.0473]
[1724833944501,15.591652,2471.1,2470.7,4.0473]
[1724833944867,11.544872,2471.1,2470.7,4.0473]
[1724833945506,15.591672,2471.1,2470.7,4.0473]
[1724833945804,15.591672,2471.1,2470.6,4.04758]
[1724833946189,11.48613,2471.5,2470.5,4.04762]
[1724833946190,9.853,2470.9,2470.5,4.04762]
[1724833946400,9.853,2470.7,2470.3,4.04797]
[1724833946790,9.853,2470.7,2470.4,4.0479]
[1724833947693,9.853,2470.7,2470.5,4.04766]
[1724833947875,13.37974,2470.9,2470.4,4.04784]
[1724833948078,9.3326,2470.9,2470.4,4.04784]
[1724833948699,9.3326,2470.9,2470.5,4.04768]
[1724833949319,9.3326,2470.9,2470.6,4.04757]
[1724833949511,9.3326,2470.9,2470.7,4.04729]
[1724833949671,9.3326,2470.9,2470.7,8.09464]
[1724833949866,9.3326,2470.9,2470.8,4.04727]
[1724833950071,9.9579,2471.4,2470.9,4.04698]
[1724833950297,18.01926556,2471.4,2470.9,4.04698]
[1724833951998,4.04645,2471.3,2470.7,4.04733]
[1724833952214,14.00452,2471.2,2470.7,4.04733]
[1724833952782,14.00452,2471.2,2470.8,4.04726]
[1724833953496,15.80646556,2471.2,2470.8,4.04726]
[1724833953672,9.9579,2471.2,2470.8,4.04726]
[1724833954710,8.06131556,2471.4,2470.3,0.83773104]
[1724833954711,9.8101,2471.0,2470.3,0.83773104]
[1724833954874,9.8101,2471.0,2469.8,9.9508]
[1724833954875,9.8101,2470.7,2469.9,4.88632104]
[1724833955075,9.8101,2470.4,2470.0,4.0485]
[1724833955410,4.04777,2470.5,2469.7,4.07407889]
[1724833955411,4.0483,2470.2,2469.7,4.04896]
[1724833955619,9.52184136,2470.7,2469.5,4.0493]
[1724833955620,4.0486,2470.0,2469.5,4.0493]
[1724833955916,13.8586,2470.1,2469.5,4.0493]
[1724833956101,13.8586,2470.1,2469.6,5.45845733]
[1724833956283,13.8586,2470.1,2469.5,4.04929]
[1724833956874,17.90714,2470.1,2469.5,4.04929]
[1724833957238,4.04902,2469.8,2469.2,1.24383104]
[1724833957509,4.04902,2469.8,2469.3,4.04971]
[1724833957813,8.09804,2469.8,2469.3,4.04971]
[1724833958201,9.8641,2469.9,2469.4,4.04954]
[1724833959119,13.91285,2469.9,2469.3,8.09933]
[1724833959275,13.91285,2469.9,2469.3,4.04962]
[1724833959493,15.8880734,2469.9,2469.3,4.04962]
[1724833959834,8.7077,2469.7,2469.3,4.04962]
[1724833961208,12.75692,2469.7,2469.1,8.50601]
[1724833961404,4.04933,2469.6,2469.1,4.45604]
[1724833961729,4.04933,2469.6,2468.7,4.0506]
[1724833961730,8.7077,2469.3,2468.7,4.0506]
[1724833962288,8.7077,2469.3,2468.8,0.08100101]
[1724833962929,8.7077,2469.3,2468.9,4.05038]
[1724833963731,8.7077,2469.3,2468.8,3.0]
[1724833963732,14.033278,2469.3,2468.8,3.0]
[1724833963931,4.04989,2469.2,2468.8,3.0]
[1724833964107,4.04989,2469.2,2468.7,8.10123]
[1724833964997,8.7077,2469.3,2468.8,4.05053]
[1724833965200,8.7077,2469.3,2468.9,4.05036]
[1724833965404,12.70295,2469.6,2469.1,4.04995]
[1724833965740,8.6536,2469.6,2469.3,4.04963]
[1724833967340,14.717099,2469.6,2469.1,4.04994]
[1724833968227,10.667859,2469.6,2469.1,4.04994]
[1724833968533,8.6536,2469.6,2469.2,4.04979]
[1724833970954,8.6536,2469.6,2469.1,8.09991]
[1724833971123,8.6536,2469.6,2469.1,4.04994]
[1724833971323,8.6536,2469.6,2469.2,4.04987]
[1724833972146,8.6536,2469.6,2469.4,4.04956]
[1724833973463,8.6536,2469.6,2469.4,4.04948]
[1724833973811,8.6536,2469.6,2469.4,4.04823149]
[1724833974355,8.0555,2469.5,2468.2,0.83773104]
[1724833974649,8.0555,2469.4,2468.9,4.05027]
[1724833974870,8.0555,2469.4,2469.0,4.05015]
[1724833975444,8.0555,2469.4,2469.1,4.05005]
[1724833976054,8.0555,2469.4,2468.9,8.10056]
[1724833976261,1.210498,2469.3,2468.9,4.05027]
[1724833976766,1.210498,2469.3,2468.6,8.10163]
[1724833976767,8.2969,2469.0,2468.6,8.10163]
[1724833977073,8.2969,2469.0,2468.6,4.05079]
[1724833977351,12.34721,2469.0,2468.4,4.05109]
[1724833977552,8.8829,2468.9,2468.4,4.05109]
[1724833978060,8.8829,2468.9,2468.2,0.4061]
[1724833978253,4.05063,2468.8,2468.3,4.05127]
[1724833978948,16.9838,2468.9,2468.4,4.05119]
[1724833979150,4.05058,2468.8,2468.3,4.05136]
[1724833980025,8.903,2468.6,2468.2,4.05144]
[1724833980222,8.903,2468.6,2468.3,3.0]
[1724833980559,8.903,2468.6,2468.3,7.05126]
[1724833981918,8.903,2468.6,2468.2,4.05144]
[1724833981919,10.198357,2468.6,2468.2,4.05144]
[1724833982171,10.198357,2468.6,2468.0,4.05176]
[1724833982172,4.05112,2468.5,2468.0,4.05176]
[1724833982368,4.05112,2468.5,2467.9,4.05201]
[1724833982369,8.903,2468.4,2467.9,4.05201]
[1724833982596,14.7843347,2468.4,2467.8,8.10417]
[1724833982797,1.88354547,2468.3,2467.9,4.05198]
[1724833984209,8.1099,2468.1,2467.8,4.05207]
[1724833984396,8.1099,2468.1,2467.8,8.10414]
[1724833984704,8.1099,2468.1,2467.8,4.05207]
[1724833984868,8.1099,2468.1,2467.9,4.05201]
[1724833985410,8.5936,2468.5,2468.0,4.05186]
[1724833985566,8.998699,2468.5,2468.2,4.05149]
[1724833985772,11.49067,2468.8,2467.7,4.05232]
[1724833985773,8.5936,2468.8,2468.6,4.05082]
[1724833986506,0.85936,2468.7,2468.4,4.05104]
[1724833986678,8.5936,2468.8,2468.5,4.05104]
[1724833988367,8.5936,2468.8,2468.7,4.05071]
[1724833988612,8.5936,2468.8,2468.7,8.10142]
[1724833988796,8.5479,2469.2,2468.6,4.08485578]
[1724833988981,8.5479,2469.6,2469.1,4.04993]
[1724833989182,7.176219,2469.6,2469.1,4.04993]
[1724833989394,8.5479,2469.5,2469.1,4.04993]
[1724833989630,12.59731,2469.5,2468.9,4.05028]
[1724833989801,8.5479,2469.2,2468.7,4.05059]
[1724833990121,8.5479,2469.2,2468.9,4.05035]
[1724833990414,8.5479,2469.2,2468.5,4.08485578]
[1724833990415,8.5479,2469.2,2468.8,4.05053]
[1724833991970,8.5479,2469.2,2468.8,4.05045]
[1724833992173,8.5479,2469.2,2468.9,4.05028]
[1724833992720,8.5479,2469.2,2469.1,4.05005]
[1724833994124,8.5479,2469.2,2468.5,0.4061]
[1724833994125,8.4182,2469.1,2468.5,0.4061]
[1724833994322,0.85479,2469.2,2468.2,0.08102066]
[1724833994323,8.4182,2468.6,2468.2,0.08102066]
[1724833994631,8.4182,2468.6,2468.2,4.13253066]
[1724833994793,8.4182,2468.6,2468.3,4.05128]
[1724833995195,8.4182,2468.6,2468.0,4.08485578]
[1724833995196,12.46921,2468.6,2468.1,4.05169]
[1724833995388,8.4182,2468.4,2467.9,4.45807]
[1724833996209,12.46952,2468.4,2467.9,4.45807]
[1724833996630,8.4182,2468.4,2467.9,4.45807]
[1724833997635,8.4182,2468.4,2468.0,4.05185]
[1724833998222,8.4182,2468.4,2467.9,0.4061]
[1724833998223,8.4114,2468.3,2467.9,0.4061]
[1724833998424,8.4114,2468.3,2467.6,3.0]
[1724833998425,8.4114,2468.0,2467.6,4.05236]
[1724833998763,8.4114,2468.0,2467.5,4.05265]
[1724833998888,8.4114,2468.0,2467.6,4.05251]
[1724833999987,9.65772,2468.0,2467.4,4.05271]
[1724834000223,9.65772,2468.0,2467.2,4.45919]
[1724834000224,4.05215,2467.9,2467.2,4.45919]
[1724834000440,8.2657,2467.4,2466.6,0.4061]
[1724834000586,9.497541,2467.4,2467.0,4.05337]
[1724834000787,8.2657,2467.4,2467.0,4.05337]
[1724834001639,8.2657,2467.4,2467.0,8.10678]
[1724834001834,8.2657,2467.8,2466.9,8.13850578]
[1724834002060,8.2657,2467.8,2467.5,4.05257]
[1724834002235,12.3179,2467.8,2467.2,4.05305]
[1724834002562,12.3179,2467.8,2467.3,4.13404198]
[1724834002563,8.2657,2467.8,2467.3,4.13404198]
[1724834002769,9.49749,2467.8,2467.2,4.05313]
[1724834002925,9.49749,2467.8,2467.3,8.10592]
[1724834003124,8.2657,2467.8,2467.3,4.05292]
[1724834003422,4.05238,2467.7,2467.2,4.05316]
[1724834004064,8.2657,2467.8,2467.3,4.05299]
[1724834004448,8.5103,2467.6,2467.1,8.10643]
[1724834004681,8.5103,2467.6,2467.1,4.0532]
[1724834005445,12.56283,2467.6,2467.1,4.0532]
[1724834005727,2.066772,2467.5,2467.1,4.0532]
[1724834005950,2.066772,2467.5,2466.9,7.45965]
[1724834005951,27.22,2468.0,2467.5,4.05268]
[1724834006165,27.22,2468.0,2467.9,4.05202]
[1724834006166,8.5103,2468.0,2467.9,4.05202]
[1724834006484,8.5103,2468.0,2467.6,0.63103617]
[1724834006485,8.5103,2468.0,2467.7,4.0522]
[1724834006628,8.5103,2468.0,2467.3,7.05294]
[1724834006629,9.36133,2468.0,2467.4,4.05283]
[1724834006962,8.2258,2467.8,2467.4,4.05283]
[1724834007149,8.76,2467.7,2467.2,4.05304]
[1724834007324,14.040276,2467.7,2467.2,4.05304]
[1724834007525,8.76,2467.5,2467.0,4.05334]
[1724834008150,12.8127,2467.5,2467.0,4.05334]
[1724834008878,5.4565576,2467.6,2466.6,4.49095578]
[1724834008879,8.76,2467.4,2466.6,4.49095578]
[1724834009029,8.76,2467.4,2467.2,4.05316]
[1724834009227,8.76,2467.4,2466.8,4.05376]
[1724834009466,8.76,2467.4,2466.9,4.05358]
[1724834009467,9.636,2467.4,2466.9,4.05358]
[1724834009672,9.636,2467.4,2467.0,4.05349]
[1724834009874,8.76,2467.4,2467.1,0.08106553]
[1724834010032,8.76,2467.4,2467.3,4.05301]
[1724834010453,8.76,2467.4,2467.3,8.10602]
[1724834010651,8.76,2467.4,2467.3,4.05301]
[1724834011654,8.76,2467.4,2467.0,4.05347]
[1724834011969,8.76,2467.4,2467.2,4.05317]
[1724834012156,8.76,2467.4,2467.0,4.05335]
[1724834012369,10.37110795,2467.4,2467.0,4.05335]
[1724834012547,8.76,2467.4,2467.1,4.05333]
[1724834012747,8.76,2467.4,2467.2,4.05313]
[1724834013146,8.76,2467.4,2467.3,4.05301]
[1724834013559,12.4266,2467.8,2467.3,4.05301]
[1724834013755,8.3744,2467.6,2467.3,4.05301]
[1724834014786,8.3744,2467.6,2467.3,4.0529]
[1724834015162,8.3744,2467.6,2467.2,4.05313]
[1724834015477,9.52338153,2467.6,2467.2,4.05313]
[1724834015683,9.52338153,2467.6,2467.3,4.05301]
[1724834016060,9.52338153,2467.6,2467.1,4.05325]
[1724834016382,9.52338153,2467.6,2466.9,4.05355]
[1724834016383,12.69285,2467.4,2466.9,4.05355]
[1724834016962,12.69285,2467.4,2466.9,8.10712]
[1724834017144,12.69285,2467.4,2466.9,4.05351]
[1724834018246,8.8349,2467.3,2466.8,4.05374]
[1724834018477,14.31691529,2467.3,2466.6,4.05414]
[1724834018675,8.8349,2467.2,2466.7,4.05386]
[1724834018875,8.0747,2467.1,2466.7,4.05386]
[1724834019397,12.12831,2467.0,2466.4,4.05433]
[1724834019543,8.0747,2466.9,2466.5,4.05418]
[1724834020373,8.0747,2466.9,2466.6,4.05414]
[1724834020777,8.0747,2466.9,2466.8,8.10766]
[1724834020993,8.0747,2466.9,2466.8,8.65766]
[1724834021692,19.78,2467.3,2467.1,4.05334]
[1724834021899,4.0528,2467.5,2466.9,4.05354]
[1724834022211,6.5848,2467.3,2466.9,8.10712]
[1724834022515,6.5848,2467.3,2466.9,4.05354]
[1724834022734,6.5848,2467.3,2466.7,4.05396]
[1724834022735,6.5848,2467.1,2466.7,4.05396]
[1724834023027,6.4002,2467.0,2466.6,4.05408]
[1724834023178,10.4537,2467.0,2466.5,4.05422]
[1724834023377,6.4002,2466.9,2466.5,4.05422]
[1724834023582,6.4002,2466.9,2466.5,8.10846]
[1724834023822,6.4002,2466.9,2466.5,4.05422]
[1724834024021,6.4002,2466.9,2466.5,8.10846]
[1724834025082,7.5972231,2466.9,2466.5,8.10846]
[1724834025288,7.5972231,2466.9,2466.5,4.05422]
[1724834026020,7.5972231,2466.9,2466.5,8.10846]
[1724834026422,7.5972231,2466.9,2466.5,4.05422]
[1724834027367,7.5972231,2466.9,2466.3,7.46064]
[1724834027368,6.8983,2466.7,2466.3,11.10909]
[1724834027585,6.8983,2466.7,2466.3,7.05454]
[1724834027735,6.8983,2466.7,2466.5,4.0543]
[1724834027930,6.8983,2466.7,2466.4,0.08108583]
[1724834028255,6.8983,2466.7,2466.4,4.05446]
[1724834028573,6.8983,2466.7,2466.4,8.10885]
[1724834028770,6.8983,2466.7,2466.4,4.05439]
[1724834029135,7.993498,2466.7,2466.3,4.05452]
[1724834029966,10.68189,2466.6,2466.2,4.05472]
[1724834030269,10.68189,2466.6,2465.4,1.30721741]
[1724834030270,6.6864,2466.4,2465.8,4.05535]
[1724834030475,6.6864,2466.4,2466.0,4.05503]
[1724834030630,7.43497498,2466.4,2466.0,4.05503]
[1724834030826,7.43497498,2466.4,2466.1,4.05498]
[1724834031176,7.43497498,2466.4,2465.8,4.05546]
[1724834031339,7.43497498,2466.4,2465.9,0.63502266]
[1724834031541,7.43497498,2466.4,2465.9,4.0553]
[1724834031542,6.6178,2466.2,2465.9,4.0553]
[1724834032457,6.6178,2466.2,2466.0,4.05514]
[1724834032695,6.6178,2466.2,2466.0,8.11028]
[1724834032901,6.6178,2466.2,2466.1,8.19106059]
[1724834033088,6.6178,2466.2,2466.1,8.65996]
[1724834033257,5.77103317,2466.2,2466.1,9.29491802]
[1724834033458,27.22,2467.2,2466.8,4.05375]
[1724834033658,7.180595,2467.2,2466.6,4.05402]
[1724834033866,4.05345,2467.1,2466.6,4.05402]
[1724834034097,4.05375,2466.9,2466.4,4.05437]
[1724834034300,4.05375,2466.9,2466.3,4.05453]
[1724834034593,4.05375,2466.9,2466.4,4.05446]
[1724834035341,4.05384,2466.8,2466.3,4.05453]
[1724834035629,4.05375,2466.9,2466.4,4.05448]
[1724834035837,11.00857045,2466.9,2466.4,4.05448]
[1724834036303,6.6026,2466.7,2466.3,4.05465]
[1724834036702,7.0701,2466.6,2466.2,4.0548]
[1724834036928,7.0701,2466.6,2466.2,8.10954]
[1724834037308,7.0701,2466.6,2466.2,4.05474]
[1724834037503,7.0701,2466.6,2466.2,4.05477]
[1724834037731,7.0701,2466.6,2466.3,4.05452]
[1724834037903,7.0701,2466.6,2466.4,4.05447]
[1724834039042,7.0701,2466.6,2466.5,4.60432]
[1724834040441,7.0701,2466.6,2466.5,0.55]
[1724834040734,7.0701,2466.6,2466.3,4.0546]
[1724834040935,7.0701,2466.6,2466.4,4.05446]
[1724834041108,7.0701,2466.6,2466.5,8.10864]
[1724834041443,7.0701,2466.6,2466.5,8.65864]
[1724834041642,7.0701,2466.6,2466.5,9.2935146]
[1724834041796,7.0701,2466.6,2466.5,5.2391946]
[1724834042198,7.0701,2466.6,2466.4,8.10875]
[1724834042399,7.0701,2466.6,2466.4,4.05436]
[1724834043152,7.0701,2466.6,2466.2,4.05469]
[1724834043334,6.7871,2466.4,2466.2,8.10942]
[1724834043645,6.7871,2466.4,2466.2,8.10941]
[1724834043849,6.7871,2466.4,2466.0,3.0]
[1724834043850,6.7871,2466.4,2466.3,4.05465]
[1724834044030,6.7871,2466.9,2466.8,4.05374]
[1724834044347,6.7871,2466.9,2466.6,4.054]
[1724834044501,6.7871,2466.9,2466.5,4.05424]
[1724834045347,6.7871,2466.8,2466.2,4.05471]
[1724834045500,7.871179,2466.8,2466.4,4.05446]
[1724834045700,6.7871,2466.8,2466.4,4.05446]
[1724834045901,6.9183,2466.7,2466.2,4.05471]
[1724834046257,6.9737,2466.4,2466.0,4.05504]
[1724834046444,6.9737,2466.4,2466.1,4.6899344]
[1724834046647,6.9737,2466.4,2466.1,4.05495]
[1724834047240,6.9737,2466.4,2466.0,4.05504]
[1724834047618,6.9737,2466.4,2466.1,0.63499046]
[1724834047929,6.974,2466.3,2465.9,4.05528]
[1724834048125,6.974,2466.3,2466.0,0.63500056]
[1724834048308,6.974,2466.3,2466.1,0.63500452]
[1724834048510,6.974,2466.3,2465.9,4.05528]
[1724834048698,6.974,2466.3,2466.0,0.63500603]
[1724834048923,6.974,2466.3,2465.8,4.05536]
[1724834048924,6.974,2466.2,2465.8,4.05536]
[1724834049142,6.974,2466.2,2465.9,0.63503335]
[1724834049346,6.974,2466.2,2465.8,4.05536]
[1724834049529,6.974,2466.2,2465.9,0.63505768]
[1724834049851,6.974,2466.2,2465.8,4.05536]
[1724834050140,6.974,2466.2,2465.1,4.07960581]
[1724834050141,4.05523,2466.0,2465.4,8.11205]
[1724834050313,4.9072,2465.9,2465.5,0.63510677]
[1724834050513,4.9072,2465.9,2465.4,4.05601]
[1724834050737,4.9072,2465.9,2465.5,0.7162543]
[1724834050904,4.9072,2465.9,2465.8,8.11094]
[1724834051246,7.44,2466.3,2466.1,4.05486]
[1724834051247,4.9072,2466.2,2466.1,4.05486]
[1724834051747,4.9072,2466.2,2465.8,0.4061]
[1724834051748,4.9072,2466.2,2465.8,4.05538]
[1724834052054,4.9072,2466.2,2466.1,8.10996]
[1724834052938,4.8165,2466.7,2466.3,4.05455]
[1724834053143,4.8165,2466.7,2466.0,4.05509]
[1724834053313,4.8165,2466.7,2466.5,4.0542]
[1724834053644,4.8165,2466.7,2466.3,4.05462]
[1724834053645,4.9251,2466.6,2466.3,4.05462]
[1724834054151,4.9251,2466.6,2466.3,4.05454]
[1724834054442,4.9251,2466.6,2465.9,0.9561]
[1724834054443,4.7427,2466.5,2466.0,4.46113]
[1724834054604,4.7427,2466.5,2466.1,0.55]
[1724834054800,4.7427,2466.5,2466.1,4.6049]
[1724834055105,4.7427,2466.5,2466.2,4.0548]
[1724834055325,4.7427,2466.5,2466.4,4.05449]
[1724834056152,4.7427,2466.5,2466.3,4.05465]
[1724834056304,4.7427,2466.5,2466.2,4.05481]
[1724834057487,4.7427,2466.5,2466.3,4.05463]
[1724834058014,4.7427,2466.5,2466.3,4.05456]
[1724834058215,4.7427,2466.5,2466.4,4.05449]
[1724834058441,4.7427,2466.5,2466.4,8.10898]
[1724834059917,4.7427,2466.5,2466.4,8.65898]
[1724834060104,4.7427,2466.5,2466.4,9.92877151]
[1724834060300,4.7427,2466.5,2466.4,13.98326151]
[1724834060539,4.7069,2466.8,2466.7,8.10793]
[1724834061140,4.7069,2466.8,2466.7,8.65793]
[1724834061822,4.7591,2467.2,2467.1,12.16002]
[1724834062145,4.47539763,2468.2,2467.7,4.05229]
[1724834062146,4.7591,2467.9,2467.7,4.05229]
[1724834062369,4.7591,2467.9,2467.8,4.05219]
[1724834063116,4.7591,2467.9,2467.7,4.05229]
[1724834063451,5.23501,2467.9,2467.7,4.05229]
[1724834065248,4.7591,2467.9,2467.7,8.10455]
[1724834065422,4.7591,2467.9,2467.7,4.05226]
[1724834066134,4.7591,2467.9,2467.3,4.05289]
[1724834066347,4.7591,2467.7,2467.3,4.05289]
[1724834067045,4.7591,2467.7,2467.4,4.05282]
[1724834067622,4.7591,2467.7,2467.5,4.05266]
[1724834067849,4.7591,2467.7,2467.4,4.0528]
[1724834068046,5.640215,2467.7,2467.4,4.0528]
[1724834068526,5.640215,2467.7,2467.3,4.05286]
[1724834069947,5.640215,2467.7,2467.4,4.05274]
[1724834070248,5.640215,2467.7,2467.5,4.05266]
[1724834070464,4.7591,2467.7,2467.5,4.05266]
[1724834071321,4.7591,2467.7,2467.5,8.10521]
[1724834071550,4.7591,2467.7,2467.6,8.10504]
[1724834075321,4.7591,2467.7,2467.6,12.73989578]
[1724834075906,4.7591,2467.7,2467.6,16.79241578]
[1724834076110,7.44,2468.6,2467.6,16.79241578]
[1724834076111,5.1585,2468.4,2468.1,4.05162]
[1724834076771,5.1585,2468.4,2467.9,4.0519]
[1724834076970,4.6819,2468.2,2467.9,8.10381]
[1724834077158,4.6819,2468.2,2467.9,4.0519]
[1724834077846,4.6819,2468.2,2468.0,4.05175]
[1724834078172,4.6819,2468.2,2468.0,4.05186]
[1724834078675,4.6819,2468.2,2468.1,4.05169]
[1724834080484,4.6819,2468.2,2468.1,8.10338]
[1724834083083,4.6819,2468.2,2467.9,4.05199]
[1724834083084,4.6819,2468.2,2467.9,4.05195]
[1724834083244,2.3756,2468.0,2467.9,4.05195]
[1724834084076,2.3756,2468.0,2467.8,8.10411]
[1724834084237,2.3756,2468.0,2467.9,4.05202]
[1724834085477,2.3756,2468.0,2467.8,4.05215]
[1724834087880,2.3756,2468.0,2467.9,4.05202]
[1724834089194,2.3756,2468.0,2467.6,8.13725578]
[1724834089477,2.61316,2468.0,2467.6,4.0524]
[1724834089690,2.3756,2468.0,2467.6,4.0524]
[1724834090348,2.468,2467.8,2467.4,4.05271]
[1724834090680,2.468,2467.7,2467.4,4.05271]
[1724834091071,2.468,2467.7,2467.5,4.05265]
[1724834091284,2.468,2467.7,2467.6,4.05252]
[1724834092794,2.468,2467.7,2467.5,4.05257]
[1724834093261,2.468,2467.7,2467.6,4.05252]
[1724834094471,2.468,2467.7,2467.4,4.08485578]
[1724834094472,2.468,2467.7,2467.4,8.13761578]
[1724834094751,2.468,2467.7,2467.3,8.1058]
[1724834095365,2.468,2467.7,2467.4,8.13766578]
[1724834095566,2.468,2467.7,2467.5,4.05254]
[1724834096788,2.468,2467.7,2467.4,4.05275]
[1724834097507,2.468,2467.7,2467.4,8.10552]
[1724834098580,2.468,2467.7,2467.4,8.10551]
[1724834098974,2.468,2467.7,2467.4,4.05275]
[1724834099178,2.468,2467.7,2467.5,4.05268]
[1724834100199,2.468,2467.7,2467.3,4.05299]
[1724834100358,3.120004,2467.7,2467.3,4.05299]
[1724834100554,2.3942,2467.4,2466.9,4.05354]
[1724834100755,2.3942,2467.4,2466.9,8.10713]
[1724834100756,2.3942,2467.3,2466.9,8.10713]
[1724834100996,2.3942,2467.3,2467.0,4.05341]
[1724834101464,2.3942,2467.3,2467.1,4.05334]
[1724834102483,2.3942,2467.3,2467.0,4.05348]
[1724834104252,2.3942,2467.3,2467.2,12.19119578]
[1724834104533,2.3942,2467.3,2467.2,13.14729578]
[1724834104718,2.3942,2467.3,2467.2,17.20046578]
[1724834104905,7.44,2467.7,2467.2,17.20046578]
[1724834104906,7.44,2467.7,2467.6,4.05252]
[1724834105105,7.44,2468.4,2467.6,8.76840286]
[1724834105316,7.44,2468.4,2468.0,4.05184]
[1724834105317,4.0512,2468.4,2468.0,4.05184]
[1724834105515,2.3248,2468.3,2468.0,4.05184]
[1724834105734,2.3248,2468.3,2467.9,8.10385]
[1724834105933,2.3248,2468.3,2467.6,4.08485578]
[1724834105934,2.3248,2468.3,2468.0,4.05181]
[1724834106931,2.3248,2468.3,2468.0,4.05177]
[1724834109238,2.3248,2468.3,2468.1,4.05158]
[1724834109534,2.3248,2468.3,2468.0,4.05177]
[1724834109939,2.55728,2468.3,2468.0,4.05177]
[1724834110460,2.3248,2468.3,2468.0,8.10354]